bitfinex-derivatives/quotes_SOLF0:USTF0_20250606
["timestamp","ask_amount","ask_price","bid_price","bid_amount"]
[1749194634536,0.0484965,147.61,147.6,11.60199403]
[1749194634729,395.07019403,147.7,147.6,4.83019403]
[1749194634730,38.3474,147.67,147.6,4.83019403]
[1749194634930,2.74132111,147.66,147.6,4.83019403]
[1749194635139,2.74096394,147.65,147.6,4.83019403]
[1749194635328,42.8933,147.67,147.6,4.83019403]
[1749194635329,2.74100591,147.64,147.6,4.83019403]
[1749194635530,42.8933,147.67,147.63,6.7701]
[1749194635731,2.78765974,147.66,147.64,0.04444933]
[1749194635930,2.7659909,147.65,147.64,0.04444933]
[1749194636128,2.76599159,147.65,147.64,6.81434933]
[1749194636326,2.76599158,147.65,147.64,4.87464336]
[1749194636633,0.04586363,147.66,147.64,4.87464336]
[1749194637025,0.04586363,147.66,147.64,11.64424336]
[1749194637427,0.04586363,147.66,147.64,4.87464336]
[1749194637630,0.04586363,147.66,147.65,6.7695]
[1749194638333,6.7668,147.71,147.67,6.7685]
[1749194638636,6.7666,147.72,147.67,6.7685]
[1749194639031,6.7666,147.72,147.68,6.7681]
[1749194639435,0.04761955,147.71,147.69,0.0468262]
[1749194640730,6.7672,147.7,147.69,0.0468262]
[1749194641137,11.59739403,147.7,147.69,0.0468262]
[1749194642240,4.83019403,147.7,147.63,33.8]
[1749194642435,4.83019403,147.69,147.63,33.8]
[1749194642632,4.83019403,147.71,147.63,38.63019403]
[1749194643336,0.05054549,147.68,147.66,0.04945424]
[1749194645333,6.81894549,147.68,147.66,0.04945424]
[1749194646232,6.7686,147.67,147.66,0.04945424]
[1749194648346,6.81884549,147.68,147.66,0.04945424]
[1749194649542,0.05054549,147.68,147.66,0.04945424]
[1749194650147,6.81864549,147.68,147.66,0.04945424]
[1749194650648,0.05054549,147.68,147.66,0.04945424]
[1749194650843,0.05054549,147.68,147.66,6.81825424]
[1749194651748,0.05054549,147.68,147.67,6.7686]
[1749194652352,0.05054549,147.68,147.66,0.04945424]
[1749194653944,6.81874549,147.68,147.66,0.04945424]
[1749194654344,0.05054549,147.68,147.66,0.04945424]
[1749194655152,6.7686,147.67,147.66,0.04945424]
[1749194656254,6.81864549,147.68,147.66,0.04945424]
[1749194657453,6.7686,147.67,147.66,0.04945424]
[1749194658340,6.81884549,147.68,147.66,0.04945424]
[1749194662357,4.83019403,147.67,147.6,36.0534]
[1749194662658,4.83019403,147.65,147.6,36.0534]
[1749194663154,0.04596294,147.64,147.6,33.78]
[1749194663458,0.04596294,147.64,147.61,6.81605314]
[1749194663852,0.04596294,147.64,147.62,6.7704]
[1749194664558,0.04596294,147.64,147.61,6.81605314]
[1749194665559,0.04596294,147.64,147.62,6.7707]
[1749194666254,0.04596294,147.64,147.63,6.7704]
[1749194667258,2.82230407,147.64,147.63,6.7704]
[1749194667452,2.82199697,147.64,147.63,6.7704]
[1749194667655,2.82206051,147.64,147.63,6.7704]
[1749194668460,2.82188764,147.64,147.63,6.7704]
[1749194668862,0.04596294,147.64,147.63,6.7704]
[1749194682369,2.78503546,147.68,147.67,6.7684]
[1749194682568,2.78498644,147.68,147.67,6.7684]
[1749194682775,2.78495634,147.68,147.67,6.7684]
[1749194682972,2.78498736,147.68,147.67,6.7684]
[1749194683369,2.78485521,147.68,147.67,6.7684]
[1749194683966,0.04427984,147.69,147.67,6.7684]
[1749194684372,2.78484308,147.68,147.67,6.7684]
[1749194684871,2.78482461,147.68,147.67,6.7684]
[1749194685079,0.04427984,147.69,147.68,6.7681]
[1749194685281,2.82873081,147.69,147.68,6.7681]
[1749194685678,2.82875792,147.69,147.68,6.7681]
[1749194685881,0.04427984,147.69,147.68,6.7681]
[1749194686278,2.82854924,147.69,147.68,6.7681]
[1749194686783,0.04427984,147.69,147.68,6.7681]
[1749194686983,2.83471826,147.69,147.68,6.7681]
[1749194687589,2.83471802,147.69,147.68,6.7681]
[1749194687880,0.04427984,147.69,147.68,6.7681]
[1749194688086,2.83471732,147.69,147.67,6.7685]
[1749194688380,0.04427984,147.69,147.67,6.7685]
[1749194688586,6.7686,147.67,147.66,0.0453932]
[1749194688784,13.25579274,147.67,147.61,33.68]
[1749194688985,4.83019403,147.65,147.61,33.68]
[1749194689188,11.59999403,147.65,147.62,6.7706]
[1749194689788,11.6505038,147.65,147.62,0.05014034]
[1749194690290,6.77,147.64,147.62,0.05014034]
[1749194690882,6.7704,147.63,147.62,0.05014034]
[1749194691086,9.56100398,147.63,147.62,0.05014034]
[1749194691383,14.39119772,147.63,147.62,0.05014034]
[1749194691779,20.02296084,147.63,147.62,0.05014034]
[1749194691980,8.42236681,147.63,147.62,0.05014034]
[1749194692180,7.60774491,147.63,147.62,0.05014034]
[1749194692381,7.60771179,147.63,147.62,0.05014034]
[1749194692580,4.83019403,147.63,147.62,0.05014034]
[1749194692779,7.60771248,147.63,147.62,0.05014034]
[1749194692980,4.83019403,147.63,147.62,0.05014034]
[1749194693389,7.60771399,147.63,147.62,0.05014034]
[1749194693887,7.60738248,147.63,147.62,0.05014034]
[1749194694091,7.60744593,147.63,147.62,0.05014034]
[1749194694592,7.60738109,147.63,147.62,0.05014034]
[1749194694793,14.37784453,147.63,147.62,0.05014034]
[1749194694981,14.37777612,147.63,147.62,0.05014034]
[1749194695185,11.60059403,147.63,147.62,0.05014034]
[1749194695486,14.3774297,147.63,147.62,0.05014034]
[1749194695686,7.60706986,147.63,147.62,0.05014034]
[1749194696181,2.77687026,147.63,147.62,0.05014034]
[1749194696382,11.60029403,147.64,147.62,0.05014034]
[1749194696582,2.77677696,147.63,147.62,0.05014034]
[1749194696785,11.60029403,147.64,147.62,0.05014034]
[1749194698697,2.76656839,147.63,147.62,0.05014034]
[1749194699099,11.60029403,147.64,147.62,0.05014034]
[1749194699300,2.76663319,147.63,147.62,0.05014034]
[1749194699700,2.76653599,147.63,147.62,0.05014034]
[1749194699901,2.76660179,147.63,147.62,0.05014034]
[1749194700301,2.76608382,147.63,147.62,0.05014034]
[1749194700497,2.76603628,147.63,147.62,0.05014034]
[1749194700802,2.76608382,147.63,147.62,0.05014034]
[1749194700997,6.7701,147.64,147.62,0.05014034]
[1749194701302,11.60029403,147.64,147.62,0.05014034]
[1749194702097,5.67326275,147.65,147.62,0.05014034]
[1749194702302,0.05050977,147.65,147.62,0.05014034]
[1749194702794,4.83019403,147.64,147.62,0.05014034]
[1749194704402,11.60029403,147.64,147.62,0.05014034]
[1749194704600,4.83019403,147.64,147.62,0.05014034]
[1749194704997,2.75882198,147.63,147.62,0.05014034]
[1749194705198,9.52920638,147.63,147.62,0.05014034]
[1749194705407,9.52920568,147.63,147.62,0.05014034]
[1749194705703,6.7704,147.63,147.62,0.05014034]
[1749194706099,9.52864311,147.63,147.62,0.05014034]
[1749194706301,9.52865414,147.63,147.62,0.05014034]
[1749194706601,9.52899489,147.63,147.62,0.05014034]
[1749194706802,6.7704,147.63,147.62,0.05014034]
[1749194709001,9.53286549,147.63,147.62,0.05014034]
[1749194709201,6.7704,147.63,147.62,0.05014034]
[1749194710206,45.28039403,147.64,147.62,0.05014034]
[1749194710705,6.7704,147.63,147.62,0.05014034]
[1749194712501,45.28029403,147.64,147.62,0.05014034]
[1749194712704,33.68,147.64,147.62,0.05014034]
[1749194712902,0.05050977,147.65,147.62,0.05014034]
[1749194713111,0.05050977,147.65,147.63,6.7701]
[1749194713808,0.05050977,147.65,147.62,0.05014034]
[1749194714207,0.05050977,147.65,147.64,6.77]
[1749194718413,0.05050977,147.65,147.63,6.7703]
[1749194719312,0.05050977,147.65,147.62,33.67014034]
[1749194719313,0.05050977,147.65,147.64,6.77]
[1749194720216,0.05050977,147.65,147.63,6.7703]
[1749194721320,0.05050977,147.65,147.64,6.77]
[1749194724721,7.61102066,147.72,147.67,6.7686]
[1749194725022,6.7674,147.7,147.65,4.83019403]
[1749194725220,6.7674,147.7,147.66,6.7688]
[1749194725822,0.04527873,147.69,147.67,0.04594304]
[1749194726218,0.04527873,147.69,147.67,6.81454304]
[1749194726423,0.04527873,147.69,147.67,0.04594304]
[1749194727120,0.04527873,147.69,147.68,6.7682]
[1749194730727,33.62,147.76,147.7,6.7668]
[1749194730920,4.83019403,147.74,147.7,6.7668]
[1749194731224,11.59599403,147.74,147.71,6.7667]
[1749194731624,11.64512961,147.74,147.71,6.81658978]
[1749194731819,4.87932961,147.74,147.71,6.81658978]
[1749194732026,4.87932961,147.74,147.71,0.04988978]
[1749194732227,6.7662,147.73,147.71,0.04988978]
[1749194732422,4.83019403,147.72,147.71,0.04988978]
[1749194732722,4.83019403,147.72,147.65,33.62]
[1749194732929,4.83019403,147.69,147.65,33.62]
[1749194733627,4.83019403,147.69,147.66,0.0435435]
[1749194733628,0.05013045,147.68,147.66,0.0435435]
[1749194734928,4.83019403,147.67,147.66,0.0435435]
[1749194735126,0.05013045,147.68,147.66,0.0435435]
[1749194736029,0.05013045,147.68,147.66,6.8126435]
[1749194736628,0.05013045,147.68,147.67,6.7686]
[1749194742327,0.05013045,147.68,147.66,6.8124435]
[1749194743826,4.88032448,147.68,147.66,0.0435435]
[1749194746225,45.62862448,147.68,147.66,0.0435435]
[1749194746425,45.62862448,147.68,147.62,6.7708]
[1749194746426,38.86032448,147.68,147.62,6.7708]
[1749194746626,4.83019403,147.65,147.59,33.98]
[1749194747234,11.59979403,147.65,147.61,6.771]
[1749194747535,0.04284185,147.64,147.62,0.05116449]
[1749194749037,0.04284185,147.64,147.63,6.7704]
[1749194749232,0.04284185,147.64,147.62,0.05116449]
[1749194750334,0.04284185,147.64,147.62,6.82206449]
[1749194751737,0.04284185,147.64,147.63,6.7704]
[1749194761444,33.98,147.68,147.66,6.7686]
[1749194761640,33.98,147.68,147.63,4.83019403]
[1749194761845,11.59759403,147.7,147.63,38.81019403]
[1749194762141,2.77974877,147.69,147.63,38.81019403]
[1749194762342,4.83019403,147.7,147.63,38.81019403]
[1749194762544,0.04744751,147.68,147.66,6.7691]
[1749194762741,0.04744751,147.68,147.65,0.05125731]
[1749194764049,0.04744751,147.68,147.66,6.7687]
[1749194764243,0.04744751,147.68,147.65,0.05125731]
[1749194765952,6.7689,147.67,147.65,0.05125731]
[1749194772462,0.04744751,147.68,147.65,0.05125731]
[1749194773664,6.7689,147.67,147.65,0.05125731]
[1749194774767,6.81574751,147.68,147.65,0.05125731]
[1749194774959,2.78833236,147.67,147.65,0.05125731]
[1749194775159,6.81574751,147.68,147.65,0.05125731]
[1749194775560,2.78834431,147.67,147.65,0.05125731]
[1749194775761,6.81574751,147.68,147.65,6.82075731]
[1749194775962,2.7883277,147.67,147.65,6.82075731]
[1749194776162,6.81574751,147.68,147.65,6.82075731]
[1749194776362,2.7883284,147.67,147.65,0.05125731]
[1749194776569,0.04744751,147.68,147.65,0.05125731]
[1749194776868,2.78833236,147.67,147.65,0.05125731]
[1749194777162,6.81594751,147.68,147.65,0.05125731]
[1749194777368,2.78891524,147.67,147.65,0.05125731]
[1749194777570,0.04744751,147.68,147.65,0.05125731]
[1749194778070,2.78588592,147.67,147.65,0.05125731]
[1749194778263,2.78588592,147.66,147.65,0.05125731]
[1749194778659,9.55539402,147.66,147.65,0.05125731]
[1749194778867,6.7691,147.66,147.65,0.05125731]
[1749194779070,9.55544177,147.66,147.65,0.05125731]
[1749194779269,9.55548993,147.66,147.65,0.05125731]
[1749194779666,9.55544277,147.66,147.65,0.05125731]
[1749194780471,9.55514093,147.66,147.65,0.05125731]
[1749194780770,6.7691,147.66,147.65,0.05125731]
[1749194781171,2.78620195,147.66,147.65,0.05125731]
[1749194781367,2.78619628,147.66,147.65,0.05125731]
[1749194781871,2.7862288,147.66,147.65,0.05125731]
[1749194782067,0.04744751,147.68,147.65,0.05125731]
[1749194782272,2.78614924,147.67,147.65,0.05125731]
[1749194782469,0.04744751,147.68,147.65,0.05125731]
[1749194782665,5.68106363,147.68,147.65,0.05125731]
[1749194782869,0.04744751,147.68,147.65,0.05125731]
[1749194783065,2.78587382,147.67,147.65,0.05125731]
[1749194783269,0.04744751,147.68,147.65,0.05125731]
[1749194783872,0.04744751,147.68,147.66,6.7691]
[1749194784072,0.04744751,147.68,147.65,0.05125731]
[1749194786074,0.04744751,147.68,147.66,6.7691]
[1749194786373,0.04744751,147.68,147.65,0.05125731]
[1749194786768,0.04744751,147.68,147.67,6.7686]
[1749194786978,5.63249726,147.71,147.66,4.83019403]
[1749194787180,2.79066821,147.7,147.66,4.83019403]
[1749194787477,5.63108866,147.71,147.66,4.83019403]
[1749194787670,2.79065022,147.7,147.66,4.83019403]
[1749194787870,33.76,147.72,147.7,6.7672]
[1749194788068,2.79063512,147.71,147.7,6.81793048]
[1749194788469,2.79113999,147.71,147.7,6.81793048]
[1749194789275,2.79108723,147.71,147.7,6.81793048]
[1749194790170,2.79096607,147.71,147.7,6.81793048]
[1749194790369,0.04320946,147.72,147.71,6.7668]
[1749194792073,33.76,147.78,147.7,4.88092451]
[1749194792265,8.42809291,147.77,147.72,4.83019403]
[1749194792471,2.79788938,147.76,147.72,4.83019403]
[1749194792669,2.79775294,147.75,147.72,4.83019403]
[1749194792865,40.5237,147.78,147.72,4.83019403]
[1749194793070,0.04475034,147.75,147.72,4.87363214]
[1749194793270,0.04475034,147.75,147.72,38.63363214]
[1749194793673,0.04475034,147.75,147.74,6.765]
[1749194795268,0.04475034,147.75,147.74,11.59519403]
[1749194796277,9.55315648,147.8,147.74,11.59519403]
[1749194796278,40.5223,147.81,147.77,6.7639]
[1749194796879,40.5223,147.81,147.78,6.7634]
[1749194797269,40.56797907,147.81,147.78,6.81169359]
[1749194797474,40.56797907,147.81,147.78,0.04829359]
[1749194798480,33.80567907,147.81,147.78,6.81179359]
[1749194798778,33.80567907,147.81,147.78,0.04829359]
[1749194799081,0.04567907,147.81,147.79,6.7628]
[1749194800081,0.04567907,147.81,147.78,6.81169359]
[1749194801580,0.04567907,147.81,147.79,6.7631]
[1749194802081,0.04567907,147.81,147.78,4.87848762]
[1749194802284,0.04567907,147.81,147.8,6.7626]
[1749194806486,6.7605,147.85,147.82,6.7617]
[1749194806680,33.82,147.87,147.82,6.7617]
[1749194807081,6.7602,147.86,147.82,6.7617]
[1749194807482,0.05037876,147.85,147.83,0.0457992]
[1749194808588,0.05037876,147.85,147.83,6.8068992]
[1749194814388,0.05037876,147.85,147.84,11.59099403]
[1749194818592,0.05037876,147.85,147.84,4.83019403]
[1749194818794,0.05037876,147.85,147.83,0.0457992]
[1749194819991,0.05037876,147.85,147.83,6.8067992]
[1749194820495,0.05037876,147.85,147.83,11.63699323]
[1749194821291,0.05037876,147.85,147.84,6.7608]
[1749194824495,33.82,147.9,147.83,4.87599323]
[1749194824694,33.82,147.9,147.85,4.83019403]
[1749194825091,33.8,147.93,147.87,4.83019403]
[1749194825598,0.04934411,147.91,147.89,0.0443359]
[1749194827293,0.04934411,147.91,147.9,6.7581]
[1749194828200,33.8,147.97,147.89,4.87452993]
[1749194828404,33.8,147.97,147.91,4.83019403]
[1749194828602,40.5549,147.97,147.91,4.83019403]
[1749194829004,6.7566,147.94,147.89,4.83019403]
[1749194829211,0.05199439,147.93,147.9,0.04327466]
[1749194829901,0.05199439,147.93,147.91,6.7573]
[1749194830094,0.05199439,147.93,147.9,0.04327466]
[1749194830298,0.05199439,147.93,147.91,4.83019403]
[1749194830495,0.05199439,147.93,147.92,6.7571]
[1749194831503,0.05199439,147.93,147.9,0.04327466]
[1749194831907,6.80899439,147.93,147.9,0.04327466]
[1749194833302,0.05199439,147.93,147.9,6.80107466]
[1749194833497,0.05199439,147.93,147.9,0.04327466]
[1749194833901,0.05199439,147.93,147.9,6.80117466]
[1749194834101,0.05199439,147.93,147.9,0.04327466]
[1749194834504,0.05199439,147.93,147.9,6.80117466]
[1749194834704,0.05199439,147.93,147.9,0.04327466]
[1749194835023,0.05199439,147.93,147.91,6.7573]
[1749194835408,0.05199439,147.93,147.9,0.04327466]
[1749194835609,0.05199439,147.93,147.92,6.7571]
[1749194837003,0.05199439,147.93,147.9,0.04327466]
[1749194838004,6.80899439,147.93,147.9,0.04327466]
[1749194838207,0.05199439,147.93,147.9,0.04327466]
[1749194838411,4.83019403,147.92,147.9,0.04327466]
[1749194839314,11.58759403,147.92,147.9,0.04327466]
[1749194840113,6.7574,147.92,147.9,0.04327466]
[1749194842415,42.68019439,147.93,147.9,0.04327466]
[1749194842610,40.75358842,147.93,147.9,0.04327466]
[1749194842908,6.7572,147.92,147.9,0.04327466]
[1749194843808,40.75358842,147.93,147.9,0.04327466]
[1749194844410,0.05199439,147.93,147.9,0.04327466]
[1749194844605,0.05199439,147.93,147.92,6.7571]
[1749194848610,0.05199439,147.93,147.91,6.7576]
[1749194850417,0.05199439,147.93,147.9,6.80107466]
[1749194850619,0.05199439,147.93,147.9,0.04327466]
[1749194850815,4.88218842,147.93,147.9,0.04327466]
[1749194851212,6.7574,147.92,147.9,0.04327466]
[1749194852015,11.58779403,147.91,147.9,0.04327466]
[1749194852609,46.01654582,147.91,147.83,423.16]
[1749194852912,4.83019403,147.87,147.83,33.76]
[1749194853117,7.41573436,147.89,147.8,129.94151939]
[1749194853320,4.83019403,147.85,147.8,163.70151939]
[1749194853709,0.04778129,147.84,147.81,6.81358625]
[1749194854424,4.83019403,147.83,147.73,12.56880515]
[1749194854614,45.30060509,147.82,147.7,12.56880515]
[1749194854915,43.30504866,147.81,147.73,4.83019403]
[1749194855117,2.2634,147.82,147.73,4.80563507]
[1749194855319,42.68836527,147.82,147.74,4.80496527]
[1749194855522,6.7622,147.81,147.75,4.80496527]
[1749194855722,0.04471153,147.79,147.77,0.05067913]
[1749194857522,0.04471153,147.79,147.77,4.8556444]
[1749194857923,0.04471153,147.79,147.78,6.7634]
[1749194860212,1.153e-05,147.79,147.78,6.7634]
[1749194860522,37.79,147.86,147.82,6.7613]
[1749194860714,35.64,147.86,147.82,6.7613]
[1749194861121,7.04736527,147.87,147.82,6.7613]
[1749194861313,9.53899749,147.87,147.83,6.7611]
[1749194861517,5.06465914,147.87,147.83,6.7611]
[1749194861716,0.04761028,147.86,147.84,0.04780468]
[1749194863924,6.80771028,147.86,147.84,0.04780468]
[1749194866122,6.7602,147.85,147.84,0.04780468]
[1749194866423,0.04761028,147.86,147.84,0.04780468]
[1749194866629,6.80761028,147.86,147.84,0.04780468]
[1749194867424,0.04761028,147.86,147.84,0.04780468]
[1749194869033,40.44496527,147.93,147.85,4.80496527]
[1749194869332,4.80496527,147.91,147.83,4.80496527]
[1749194870019,0.04595094,147.88,147.86,0.04292409]
[1749194870527,6.7594,147.87,147.86,0.04292409]
[1749194870722,0.04595094,147.88,147.86,0.04292409]
[1749194871230,6.80495094,147.88,147.86,0.04292409]
[1749194871432,0.04595094,147.88,147.86,0.04292409]
[1749194872731,6.80485094,147.88,147.86,0.04292409]
[1749194873934,0.04595094,147.88,147.86,0.04292409]
[1749194874836,6.80495094,147.88,147.86,0.04292409]
[1749194875031,4.80496527,147.87,147.86,0.04292409]
[1749194875335,11.56436527,147.87,147.86,0.04292409]
[1749194876134,4.80496527,147.87,147.86,0.04292409]
[1749194877037,11.56436527,147.87,147.86,0.04292409]
[1749194878538,8.97995094,147.88,147.86,0.04292409]
[1749194879136,2.22095094,147.88,147.86,0.04292409]
[1749194879633,0.04595094,147.88,147.86,0.04292409]
[1749194880533,4.85091621,147.88,147.86,0.04292409]
[1749194880934,6.7593,147.87,147.86,0.04292409]
[1749194883233,42.3993,147.87,147.86,2.409e-05]
[1749194883436,6.7611,147.84,147.78,425.04]
[1749194883632,11.56606527,147.84,147.8,6.7622]
[1749194884440,11.56606527,147.84,147.81,0.04307268]
[1749194884441,0.04456306,147.83,147.81,0.04307268]
[1749194884642,6.80586306,147.83,147.81,0.04307268]
[1749194885740,0.04456306,147.83,147.81,0.04307268]
[1749194887644,0.04456306,147.83,147.81,6.80507268]
[1749194888038,0.04456306,147.83,147.81,0.04307268]
[1749194888232,6.80586306,147.83,147.81,0.04307268]
[1749194888436,0.04456306,147.83,147.81,0.04307268]
[1749194888839,0.04456306,147.83,147.81,6.80507268]
[1749194889638,0.04456306,147.83,147.82,6.7616]
[1749194890043,0.04456306,147.83,147.81,6.80497268]
[1749194890249,0.04456306,147.83,147.81,0.04307268]
[1749194891350,0.04456306,147.83,147.82,6.7616]
[1749194897548,0.04456306,147.83,147.81,6.80537268]
[1749194898353,0.04456306,147.83,147.82,6.7619]
[1749194907365,0.04456306,147.83,147.81,0.04307268]
[1749194907866,17.99281317,147.82,147.75,35.76]
[1749194908066,4.80471052,147.82,147.75,35.76]
[1749194908254,8.67238436,147.81,147.75,35.76]
[1749194908459,4.80471052,147.82,147.75,35.76]
[1749194908659,13.18562771,147.81,147.75,35.76]
[1749194908965,0.04830135,147.8,147.77,0.04301305]
[1749194909464,6.81110135,147.8,147.77,0.04301305]
[1749194910760,6.7633,147.79,147.77,0.04301305]
[1749194911355,0.04830135,147.8,147.77,0.04301305]
[1749194911758,0.04830135,147.8,147.78,4.80471052]
[1749194911955,0.04830135,147.8,147.79,6.7633]
[1749194913362,35.76,147.86,147.83,6.7613]
[1749194913567,5.81223222,147.85,147.8,4.80471052]
[1749194913768,42.5204,147.86,147.8,4.80471052]
[1749194913964,5.81227904,147.85,147.82,6.7617]
[1749194914157,42.5204,147.86,147.82,6.7617]
[1749194914362,12.6213963,147.85,147.83,0.04437662]
[1749194914562,6.80911726,147.85,147.83,0.04437662]
[1749194914963,11.28001587,147.85,147.83,0.04437662]
[1749194915166,4.51941587,147.85,147.83,0.04437662]
[1749194916270,11.28001587,147.85,147.83,0.04437662]
[1749194916470,11.28001586,147.85,147.83,0.04437662]
[1749194916657,11.28001587,147.85,147.83,0.04437662]
[1749194916862,4.51941587,147.85,147.83,0.04437662]
[1749194917472,4.5194159,147.85,147.83,0.04437662]
[1749194917669,0.04851726,147.85,147.83,0.04437662]
[1749194917862,4.5194159,147.85,147.83,0.04437662]
[1749194918368,2.83204235,147.84,147.83,0.04437662]
[1749194919166,8.64236499,147.84,147.83,0.04437662]
[1749194919373,15.40349355,147.84,147.83,0.04437662]
[1749194919574,15.40349425,147.84,147.83,0.04437662]
[1749194919767,15.40352146,147.84,147.83,0.04437662]
[1749194919963,12.57132264,147.84,147.83,0.04437662]
[1749194920273,6.762,147.82,147.76,40.56471052]
[1749194920763,11.56621052,147.83,147.76,40.56471052]
[1749194921170,0.0451134,147.81,147.78,0.04536248]
[1749194921367,0.0451134,147.81,147.8,6.7628]
[1749194925075,0.0451134,147.81,147.78,4.850073]
[1749194925771,0.0451134,147.81,147.78,0.04536248]
[1749194926280,0.0451134,147.81,147.79,6.7631]
[1749194926869,0.0451134,147.81,147.78,0.04536248]
[1749194927072,4.84982392,147.81,147.78,0.04536248]
[1749194927277,8.65193993,147.8,147.78,0.04536248]
[1749194927479,4.84982392,147.81,147.78,0.04536248]
[1749194927680,8.65231676,147.8,147.78,0.04536248]
[1749194927877,4.84982392,147.81,147.78,0.04536248]
[1749194928074,15.41410238,147.8,147.78,0.04536248]
[1749194928278,6.763,147.8,147.78,0.04536248]
[1749194928683,6.8076134,147.81,147.78,0.04536248]
[1749194928880,0.0451134,147.81,147.78,0.04536248]
[1749194929685,0.0451134,147.81,147.78,6.80876248]
[1749194930185,2.83644825,147.8,147.78,6.80876248]
[1749194930385,0.0451134,147.81,147.78,6.80876248]
[1749194930687,0.0451134,147.81,147.79,6.7632]
[1749194931085,0.0451134,147.81,147.78,0.04536248]
[1749194931281,0.0451134,147.81,147.8,6.7628]
[1749194932482,0.0451134,147.81,147.8,11.56751052]
[1749194934191,0.0451134,147.81,147.8,6.7628]
[1749194942389,1.34e-05,147.81,147.8,11.56751052]
[1749194943895,5.78128578,147.86,147.8,4.80471052]
[1749194944087,35.2,147.87,147.82,4.80471052]
[1749194944286,8.61534014,147.86,147.85,6.7602]
[1749194944492,11.56361052,147.89,147.85,6.7602]
[1749194944687,10.25850448,147.88,147.82,4.80471052]
[1749194944890,46.74311052,147.9,147.86,6.7597]
[1749194945097,13.13828143,147.89,147.87,0.0505884]
[1749194945299,2.83348296,147.88,147.87,0.0505884]
[1749194945499,2.83347023,147.88,147.87,0.0505884]
[1749194945699,2.83363243,147.88,147.87,0.0505884]
[1749194946100,2.83367326,147.88,147.87,0.0505884]
[1749194946299,6.80518772,147.89,147.87,0.0505884]
[1749194946802,2.83367326,147.88,147.87,0.0505884]
[1749194947307,7.31399203,147.88,147.87,0.0505884]
[1749194947500,2.83504555,147.88,147.87,0.0505884]
[1749194947699,7.31541261,147.88,147.87,0.0505884]
[1749194947899,6.80518772,147.89,147.87,0.0505884]
[1749194948200,7.32445486,147.88,147.87,0.0505884]
[1749194948398,2.84416745,147.88,147.87,0.0505884]
[1749194948605,7.32448537,147.88,147.87,0.0505884]
[1749194948805,14.08353363,147.88,147.87,0.0505884]
[1749194949003,19.87442617,147.88,147.87,0.0505884]
[1749194949201,12.53331406,147.88,147.87,0.0505884]
[1749194949401,19.87620525,147.88,147.87,0.0505884]
[1749194949598,12.53331406,147.88,147.87,0.0505884]
[1749194950103,19.87626721,147.88,147.87,0.0505884]
[1749194950404,15.07660673,147.88,147.79,2.2796]
[1749194950601,4.80471052,147.84,147.78,41.79101052]
[1749194951101,6.7617,147.83,147.79,6.763]
[1749194951405,0.05141104,147.82,147.8,0.04821201]
[1749194953206,0.05141104,147.82,147.8,6.81071201]
[1749194954909,0.05141104,147.82,147.8,0.04821201]
[1749194955406,0.05141104,147.82,147.8,6.81091201]
[1749194957311,0.05141104,147.82,147.81,6.7623]
[1749194960205,0.05141104,147.82,147.8,6.81091201]
[1749194961012,0.05141104,147.82,147.81,6.7623]
[1749194961411,0.05141104,147.82,147.8,0.04821201]
[1749194961813,11.61842156,147.82,147.8,0.04821201]
[1749194962008,2.83866445,147.81,147.8,0.04821201]
[1749194962503,2.83566461,147.81,147.8,0.04821201]
[1749194963009,14.08174117,147.81,147.8,0.04821201]
[1749194963409,9.59827383,147.81,147.8,0.04821201]
[1749194963708,14.07663501,147.81,147.8,0.04821201]
[1749194964212,14.0737607,147.81,147.8,0.04821201]
[1749194964409,9.59685464,147.81,147.8,0.04821201]
[1749194964613,14.0738252,147.81,147.8,0.04821201]
[1749194964912,14.07383939,147.81,147.8,0.04821201]
[1749194965108,11.23918076,147.81,147.8,0.04821201]
[1749194965314,7.3113081,147.81,147.8,0.04821201]
[1749194965504,2.83442734,147.81,147.8,0.04821201]
[1749194965907,7.30704672,147.81,147.8,0.04821201]
[1749194966117,7.30701955,147.81,147.8,0.04821201]
[1749194966317,2.83442734,147.81,147.8,0.04821201]
[1749194966512,2.83471698,147.81,147.8,0.04821201]
[1749194967513,7.30733621,147.81,147.8,0.04821201]
[1749194967713,2.83471698,147.81,147.8,0.04821201]
[1749194967907,0.05141104,147.82,147.8,0.04821201]
[1749194968104,2.83159124,147.81,147.8,0.04821201]
[1749194968309,2.83168742,147.81,147.8,0.04821201]
[1749194968716,0.05141104,147.82,147.8,0.04821201]
[1749194968916,2.83159194,147.81,147.8,0.04821201]
[1749194970017,0.05141104,147.82,147.8,0.04821201]
[1749194970518,2.8316702,147.81,147.8,0.04821201]
[1749194970919,2.83173386,147.81,147.8,0.04821201]
[1749194971716,2.83122838,147.81,147.8,0.04821201]
[1749194972016,0.05141104,147.82,147.8,0.04821201]
[1749194972216,2.83119018,147.81,147.8,0.04821201]
[1749194973020,2.83216643,147.81,147.8,0.04821201]